Workbook

Sheet JEN changes
A3: JEN changes
A5: Input/Escalations | B5: cells G43-M43
A6: Calc/Labour rates | B6: D18
A7: MK-hays categories_Rates | B7: row 16

Sheet Index
B1: JEN 2026-27 - Labour Rates
B2: =IFERROR(MID(CELL("filename",A1),FIND("]",CELL("filename",A1))+1,255),"") -> Index | C2: Overall Check: | D2: ='Model Validation'!C4 -> 0
B5: Worksheet summary
B7: Worksheet name | C7: Check: | F7: Input required? | H7: Description
B9: ='Output|Labour Rates'!B2 -> Output|Labour Rates | C9: NA | F9: N | H9: Contains the caclulated price for labour rates.
B10: Input | Setup
B11: ='Input|Labour Rates'!B2 -> Input|Labour Rates | C11: ='Input|Labour Rates'!G1 -> 0 | F11: Y | H11: Input for labour cost components.
B12: ='Input|Escalations'!B2 -> Input|Escalations | C12: ='Input|Escalations'!G1 -> 0 | F12: Y | H12: Sets up the inflation and labour escalations.
B13: ='Input|Indirect Cost Rates'!B2 -> Input|Indirect Cost Rates | C13: ='Input|Indirect Cost Rates'!G1 -> NA | F13: Y | H13: Input for indirect cost rates.
B14: ='Calc|Labour Rates'!B2 -> Calc|Labour Rates | C14: NA | F14: N | H14: Calculation tables for labour rates.
B15: ='Model Validation'!B2 -> Model Validation | C15: ='Model Validation'!C14 -> NA | F15: N | H15: Checks and traces possible input errors.
B18: Table summary
B20: Name | C20: Tab | F20: Input required? | H20: Description
B21: ='Output|Labour Rates'!$B$4 -> 1.1 Labour Rates for 2026-27 | C21: =B9 -> Output|Labour Rates
B22: ='Input|Setup'!A5 & " " & 'Input|Setup'!B5 -> 2.1 Years setup | C22: =B10 -> Input | Setup | F22: Y | H22: Contains the cummary of calculate labour rates used to provide services for 2024-25.
B23: ='Input|Setup'!A10 & " " & 'Input|Setup'!B10 -> 2.2 Current regulatory period | C23: =$B$10 -> Input | Setup | F23: Y | H23: Contains the regulatory years of the current regulatory control period.
B24: ='Input|Setup'!D10 & " " & 'Input|Setup'!E10 -> 2.3 Forecast regulatory period | C24: Input | Setup | F24: Y | H24: Contains the regulatory years of the forthcoming regulatory control period.
B25: ='Input|Setup'!A19& " " & 'Input|Setup'!B19 -> 2.4 Hours | C25: Input | Setup | F25: Y | H25: Please enter time periods that would result in different rates applied for the same service or labour type (e.g. business hours, after hours).
B26: ='Input|Setup'!D19 & " " & 'Input|Setup'!E19 ->  | C26: Input | Setup | F26: Y | H26: Please list the assumptions factored into this model, for calculating the final labour rate.
B27: ='Input|Setup'!A25& " " & 'Input|Setup'!B25 -> 2.5 Labour type | C27: Input | Setup | F27: Y | H27: Please enter the specific labour types used to provide fee based and quoted services.
B28: ='Input|Setup'!D25 & " " & 'Input|Setup'!E25 -> 2.6 Expense Type | C28: Input | Setup | F28: Y | H28: Please enter distributor-specific categories for fee-based services, if required.
B29: ='Input|Setup'!G25 & " " & 'Input|Setup'!H25 -> 2.7 Control Mechanism | C29: Input | Setup | F29: Y | H29: Please enter distributor-specific categories for fee-based services, if required.
B30: ='Input|Labour Rates'!A5 & " " & 'Input|Labour Rates'!B5 -> 3.1 Labour Rates | C30: =$B$11 -> Input|Labour Rates | F30: Y | H30: Please enter required information regarding labour rates (in base year dollar terms) used to provide ANS. For on-cost and overhead rates, please use formulas to reference tables 5.1 and 5.2, respectively.
B31: ='Input|Labour Rates'!J5 -> 3.2 Notes and sources | C31: =$B$11 -> Input|Labour Rates | F31: Y | H31: Please describe "Other costs" used to derive total labour rates, where appropriate, and provide sources.
B32: ='Input|Labour Rates'!A21 & " " & 'Input|Labour Rates'!B21 -> 3.3 Assumptions | C32: =$B$11 -> Input|Labour Rates | F32: Y | H32: Please describe assumptions used to derive total labour rates, where appropriate, and provide sources.
B33: ='Input|Labour Rates'!J21 -> 3.4 Notes and sources | C33: =$B$11 -> Input|Labour Rates | F33: Y | H33: Please describe "Other costs" used to derive total labour rates, where appropriate, and provide sources.
B34: ='Input|Escalations'!A5 & " " & 'Input|Escalations'!B5 -> 4.1 Escalation setup | C34: =$B$12 -> Input|Escalations | F34: Y | H34: Please enter ABS index, all groups CPI inflation series A2325846C, up to latest available December. Please enter forecast CPI, including source, for other years.
B35: ='Input|Escalations'!A13 & " " & 'Input|Escalations'!B13 -> 4.2 Inflation | C35: =$B$12 -> Input|Escalations | F35: Y | H35: Calculates X factor (real wage price escalation). Other real escalators are set to equal X factor by default, but can be amended by distributors.
B36: ='Input|Escalations'!A34 & " " & 'Input|Escalations'!B34 -> 4.3.1 Real wage price escalation | C36: =$B$12 -> Input|Escalations | F36: Y | H36: Please enter sources and forecasts for real wage price escalation, including weightings for each source, in the green input cells. Grey cells will calculate the forecast real wage price escalation.
B37: ='Input|Indirect Cost Rates'!A5 & " " & 'Input|Indirect Cost Rates'!B5 -> 5.1 On costs | C37: =$B$13 -> Input|Indirect Cost Rates | F37: Y | H37: Please enter relevant on-cost rates. Distributors may enter a total on-cost rate only. Alternatively, disaggregated on-cost rates may be provided with the total on-cost rate calculated in row 19, as required.
B38: ='Input|Indirect Cost Rates'!A22 & " " & 'Input|Indirect Cost Rates'!B22 -> 5.2 Overheads | C38: =$B$13 -> Input|Indirect Cost Rates | F38: Y | H38: Please enter rates for network overhead and corporate overhead. Where relevant, distributors may enter other overhead rates (e.g. a total overhead rate).
B39: ='Input|Indirect Cost Rates'!A32 & " " & 'Input|Indirect Cost Rates'!B32 -> 5.3 Vehicle Allowance | C39: =$B$13 -> Input|Indirect Cost Rates | F39: N | H39: Please enter base vehicle allowance, if required.
B40: ='Calc|Labour Rates'!A5 & " " & 'Calc|Labour Rates'!B5 -> 6.1 Labour Rates ($2024-25) | C40: =$B$14 -> Calc|Labour Rates | F40: N | H40: Please enter required information regarding labour rates (in base year dollar terms) used to provide ACS. For on-cost and overhead rates, please use formulas to reference tables 5.1 and 5.2, respectively.
B41: ='Calc|Labour Rates'!G5 -> 6.2 Labour Rates Build up, $'s ($2026-27) | C41: =$B$14 -> Calc|Labour Rates | F41: N | H41: Calculates the base labour rates and factors in overheads, on costs, vehcle allowances, etc.

Sheet Input|Setup
B1: =IFERROR(Index!$B$1,0) -> JEN 2026-27 - Labour Rates | E1: Key: | F1: Input | H1: Sheet Validation | I1: 0
B2: =IFERROR(MID(CELL("filename",A1),FIND("]",CELL("filename",A1))+1,255),"") -> Input|Setup | F2: Formula
Q4: For AER only
A5: 2.1 | B5: Years setup | E5: Year | F5: =IF(COUNTA(E6:E7)=0,1,0) -> 0 | Q5: Years
B6: First year of forecast regulatory control period | E6: 2026-27 | Q6: 2016-17
B7: Base year for inputs | E7: 2024-25 | Q7: =LEFT(Q6,4)+1&"-"&RIGHT(Q6,2)+1 -> 2017-18
B8: Base year for outputs | E8: =E6 -> 2026-27 | Q8: 2018-19
Q9: 2019-20
A10: 2.2 | B10: Current regulatory period | D10: 2.3 | E10: Forecast regulatory period | Q10: 2020-21
A11: 1 | B11: =LEFT(B12,4)-1&"-"&RIGHT(B12,2)-1 -> 2021-22 | D11: 1 | E11: =E6 -> 2026-27 | Q11: 2021-22
A12: =A11+1 -> 2 | B12: =LEFT(B13,4)-1&"-"&RIGHT(B13,2)-1 -> 2022-23 | D12: =D11+1 -> 2 | E12: =LEFT(E11,4)+1&"-"&RIGHT(E11,2)+1 -> 2027-28 | Q12: 2022-23
A13: =A12+1 -> 3 | B13: =LEFT(B14,4)-1&"-"&RIGHT(B14,2)-1 -> 2023-24 | D13: =D12+1 -> 3 | E13: =LEFT(E12,4)+1&"-"&RIGHT(E12,2)+1 -> 2028-29 | Q13: 2023-24
A14: =A13+1 -> 4 | B14: =LEFT(B15,4)-1&"-"&RIGHT(B15,2)-1 -> 2024-25 | D14: =D13+1 -> 4 | E14: =LEFT(E13,4)+1&"-"&RIGHT(E13,2)+1 -> 2029-30 | Q14: 2024-25
A15: =A14+1 -> 5 | B15: =LEFT(E11,4)-1&"-"&RIGHT(E11,2)-1 -> 2025-26 | D15: =D14+1 -> 5 | E15: =LEFT(E14,4)+1&"-"&RIGHT(E14,2)+1 -> 2030-31 | Q15: 2025-26
Q16: 2026-27
Q17: 2027-28
Q18: 2028-29
A19: 2.4 | B19: Hours | C19: =IF(COUNTA(B20:B22)=0,1,0) -> 0 | Q19: 2034-35
B20: Business Hours
B21: After Hours
B22: Not Applicable
A25: 2.5 | B25: Labour type | C25: =IF(COUNTA(B26:B31)=0,1,0) -> 0 | D25: 2.6 | E25: Expense Type | F25: =IF(COUNTA(E26:E31)=0,1,0) -> 0 | G25: 2.7 | H25: Control Mechanism | I25: =IF(COUNTA(H26:H31)=0,1,0) -> 0
A26: 1 | B26: Administrative Officer | E26: Capex | H26: Fee Based
A27: =A26+1 -> 2 | B27: Field Worker | E27: Opex
A28: =A27+1 -> 3 | B28: Technical Specialist
A29: =A28+1 -> 4 | B29: Engineer
A30: =A29+1 -> 5 | B30: Senior Engineer
A31: =A30+1 -> 6

Sheet Input|Escalations
B1: =IFERROR([1]Index!B1,"") -> Jemena Electricity Networks – Alternative Control Services Forecast model | C1: Key: | D1: Input | F1: Sheet Validation | G1: ='[1]Model Validation'!C11 -> 0
B2: =IFERROR(MID(CELL("filename",A1),FIND("]",CELL("filename",A1))+1,255),"") -> Input|Escalations | D2: Formula
A5: 4.1 | B5: Escalation setup
C7: Year
B8: First year of forecast regulatory control period | C8: ='[1]Input|Setup'!E6 -> 2026-27
B9: Base year for inputs | C9: ='[1]Input|Setup'!E7 -> 2024-25
B10: Base year for outputs | C10: ='[1]Input|Setup'!E8 -> 2026-27
A13: 4.2 | B13: Inflation | D13: Current regulatory period | I13: Forecast regulatory period
D15: =IFERROR((LEFT(E15,4)-1&IF(MID(E15,5,1)="","","-"&TEXT(MOD(MID(E15,6,2)-1,100),"00"))),"") -> 2021-22 | E15: =IFERROR((LEFT(F15,4)-1&IF(MID(F15,5,1)="","","-"&TEXT(MOD(MID(F15,6,2)-1,100),"00"))),"") -> 2022-23 | F15: =IFERROR((LEFT(G15,4)-1&IF(MID(G15,5,1)="","","-"&TEXT(MOD(MID(G15,6,2)-1,100),"00"))),"") -> 2023-24 | G15: =IFERROR((LEFT(H15,4)-1&IF(MID(H15,5,1)="","","-"&TEXT(MOD(MID(H15,6,2)-1,100),"00"))),"") -> 2024-25 | H15: =IFERROR((LEFT(I15,4)-1&IF(MID(I15,5,1)="","","-"&TEXT(MOD(MID(I15,6,2)-1,100),"00"))),"") -> 2025-26 | I15: =$C$8 -> 2026-27 | J15: =IFERROR((LEFT(I15,4)+1&IF(MID(I15,5,1)="","","-"&TEXT(MOD(MID(I15,6,2)+1,100),"00"))),"") -> 2027-28 | K15: =IFERROR((LEFT(J15,4)+1&IF(MID(J15,5,1)="","","-"&TEXT(MOD(MID(J15,6,2)+1,100),"00"))),"") -> 2028-29 | L15: =IFERROR((LEFT(K15,4)+1&IF(MID(K15,5,1)="","","-"&TEXT(MOD(MID(K15,6,2)+1,100),"00"))),"") -> 2029-30 | M15: =IFERROR((LEFT(L15,4)+1&IF(MID(L15,5,1)="","","-"&TEXT(MOD(MID(L15,6,2)+1,100),"00"))),"") -> 2030-31
B16: CPI year on year change (%) - lagged one year (actual/estimate) | D16: 0.008605851979 | E16: =IFERROR(E20/D20-1,0) -> 0.03498293515 | F16: 0.07831821929 | G16: 0.04051987768 | H16: 0.0242468773 | I16: 0.026 | J16: 0.0258 | K16: 0.0255 | L16: 0.0253 | M16: 0.025
B17: Cumulative Inflation Index | D17: 1 | E17: =IFERROR(D17*(1+E16),"") -> 1.034982935 | F17: =E17*(1+F16) -> 1.116040956 | G17: 1.161262799 | H17: 1.189419795 | I17: 1.22034471 | J17: 1.251829603 | K17: 1.283751258 | L17: 1.316230165 | M17: 1.349135919
B18: =IFERROR("Real "&C9 &" "&LEFT(D9,9)&" to "& "Real "&C10 &" "&LEFT(D10,9),"") -> Real 2024-25 to Real 2026-27 | E18: =I17/E17 -> 1.179096455 | F18: =I17/F17 -> 1.093458716 | G18: =I17/G17 -> 1.050877296 | I18: =I$17/INDEX($D$15:$M$17,3, MATCH($C$9,$D$15:$M$15,0)) -> 1.050877296
B19: ABS index, all groups CPI inflation series A2325846C, weighted average for the eight capital cities | D19: Dec-20 | E19: Dec-21 | F19: Dec-22 | G19: Dec-23 | H19: Dec-24 | I19: Dec-25 | J19: Dec-26 | K19: Dec-27 | L19: Dec-28 | M19: Dec-29
D20: 117.2 | E20: 121.3 | F20: 130.8 | G20: 136.1 | H20: 139.4 | I20: =H20*(1+I21) -> 143.0244 | J20: =I20*(1+J21) -> 146.7144295 | K20: =J20*(1+K21) -> 150.4556475 | L20: =K20*(1+L21) -> 154.2621754 | M20: =L20*(1+M21) -> 158.1187297 | N20: =IF(COUNTA(D20:M20)=0,1,0) -> 0
B21: Source (forecasts): RBA, Statement on Monetary Policy, Economic Outlook, Nov 2024 | I21: 0.026 | J21: 0.0258 | K21: 0.0255 | L21: 0.0253 | M21: 0.025 | N21: =IF(COUNTA(G21:M21)=0,1,0) -> 0
G22: =G17/E17 -> 1.122011542
A24: 4.3 | B24: Real price escalation | D24: Current regulatory period | I24: Forecast regulatory period
D26: =IFERROR((LEFT(E26,4)-1&IF(MID(E26,5,1)="","","-"&TEXT(MOD(MID(E26,6,2)-1,100),"00"))),"") -> 2021-22 | E26: =IFERROR((LEFT(F26,4)-1&IF(MID(F26,5,1)="","","-"&TEXT(MOD(MID(F26,6,2)-1,100),"00"))),"") -> 2022-23 | F26: =IFERROR((LEFT(G26,4)-1&IF(MID(G26,5,1)="","","-"&TEXT(MOD(MID(G26,6,2)-1,100),"00"))),"") -> 2023-24 | G26: =IFERROR((LEFT(H26,4)-1&IF(MID(H26,5,1)="","","-"&TEXT(MOD(MID(H26,6,2)-1,100),"00"))),"") -> 2024-25 | H26: =IFERROR((LEFT(I26,4)-1&IF(MID(I26,5,1)="","","-"&TEXT(MOD(MID(I26,6,2)-1,100),"00"))),"") -> 2025-26 | I26: =$C$8 -> 2026-27 | J26: =IFERROR((LEFT(I26,4)+1&IF(MID(I26,5,1)="","","-"&TEXT(MOD(MID(I26,6,2)+1,100),"00"))),"") -> 2027-28 | K26: =IFERROR((LEFT(J26,4)+1&IF(MID(J26,5,1)="","","-"&TEXT(MOD(MID(J26,6,2)+1,100),"00"))),"") -> 2028-29 | L26: =IFERROR((LEFT(K26,4)+1&IF(MID(K26,5,1)="","","-"&TEXT(MOD(MID(K26,6,2)+1,100),"00"))),"") -> 2029-30 | M26: =IFERROR((LEFT(L26,4)+1&IF(MID(L26,5,1)="","","-"&TEXT(MOD(MID(L26,6,2)+1,100),"00"))),"") -> 2030-31
B27: X-factor (real wage price escalation) | D27: =-D37 -> 0.02812040787 | E27: 0.03874835876 | F27: 0.008804329072 | G27: -0.01825166827 | H27: -0.01276076614 | I27: -0.008120818073 | J27: -0.009550582168 | K27: -0.0111993349 | L27: -0.01227436192 | M27: -0.01202541615
B28: Materials | D28: 0 | E28: 0 | F28: 0 | G28: 0 | H28: 0 | I28: 0 | J28: 0 | K28: 0 | L28: 0 | M28: 0
B29: Contracts | D29: 0 | E29: 0 | F29: 0 | G29: 0 | H29: 0 | I29: 0 | J29: 0 | K29: 0 | L29: 0 | M29: 0
B30: Vehicles | D30: 0 | E30: 0 | F30: 0 | G30: 0 | H30: 0 | I30: 0 | J30: 0 | K30: 0 | L30: 0 | M30: 0
B31: Other | D31: 0 | E31: 0 | F31: 0 | G31: 0 | H31: 0 | I31: 0 | J31: 0 | K31: 0 | L31: 0 | M31: 0
A34: 4.3.1 | B34: Real wage price escalation | D34: Current regulatory period | I34: Forecast regulatory period
D36: =IFERROR((LEFT(E36,4)-1&IF(MID(E36,5,1)="","","-"&TEXT(MOD(MID(E36,6,2)-1,100),"00"))),"") -> 2021-22 | E36: =IFERROR((LEFT(F36,4)-1&IF(MID(F36,5,1)="","","-"&TEXT(MOD(MID(F36,6,2)-1,100),"00"))),"") -> 2022-23 | F36: =IFERROR((LEFT(G36,4)-1&IF(MID(G36,5,1)="","","-"&TEXT(MOD(MID(G36,6,2)-1,100),"00"))),"") -> 2023-24 | G36: =IFERROR((LEFT(H36,4)-1&IF(MID(H36,5,1)="","","-"&TEXT(MOD(MID(H36,6,2)-1,100),"00"))),"") -> 2024-25 | H36: =IFERROR((LEFT(I36,4)-1&IF(MID(I36,5,1)="","","-"&TEXT(MOD(MID(I36,6,2)-1,100),"00"))),"") -> 2025-26 | I36: =$C$8 -> 2026-27 | J36: =IFERROR((LEFT(I36,4)+1&IF(MID(I36,5,1)="","","-"&TEXT(MOD(MID(I36,6,2)+1,100),"00"))),"") -> 2027-28 | K36: =IFERROR((LEFT(J36,4)+1&IF(MID(J36,5,1)="","","-"&TEXT(MOD(MID(J36,6,2)+1,100),"00"))),"") -> 2028-29 | L36: =IFERROR((LEFT(K36,4)+1&IF(MID(K36,5,1)="","","-"&TEXT(MOD(MID(K36,6,2)+1,100),"00"))),"") -> 2029-30 | M36: =IFERROR((LEFT(L36,4)+1&IF(MID(L36,5,1)="","","-"&TEXT(MOD(MID(L36,6,2)+1,100),"00"))),"") -> 2030-31
B37: Labour - Real wage price growth | D37: =SUM((D42*D48),(D43*D49)+D44) -> -0.02812040787 | E37: -0.03874835876 | F37: -0.008804329072 | G37: 0.01825166827 | H37: 0.01276076614 | I37: 0.008120818073 | J37: 0.009550582168 | K37: 0.0111993349 | L37: 0.01227436192 | M37: 0.01202541615
B38: Cumulative Labour - Wage price growth index | D38: =1+D37 -> 0.9718795921 | E38: =IFERROR(D38*(1+E37),"") -> 0.934220853 | F38: 0.9259956652 | G38: 0.9428966309 | H38: 0.9549287143 | I38: 0.9626835167 | J38: 0.9718777047 | K38: 0.9827620886 | L38: 0.9948248662 | M38: 1.006788049
B39: ="Escalate from base year to " & C8 -> Escalate from base year to 2026-27 | E39: =I38/E38 -> 1.03046674 | F39: =I38/F38 -> 1.039619895 | G39: =I38/G38 -> 1.020985212 | I39: =I38/INDEX($D$36:$M$38,3,MATCH($C$9,$D$36:$M$36,0)) -> 1.020985212
G40: =G38/E38 -> 1.009286646
B41: Forecast/Source | D41: =IFERROR((LEFT(E41,4)-1&IF(MID(E41,5,1)="","","-"&TEXT(MOD(MID(E41,6,2)-1,100),"00"))),"") -> 2021-22 | E41: =IFERROR((LEFT(F41,4)-1&IF(MID(F41,5,1)="","","-"&TEXT(MOD(MID(F41,6,2)-1,100),"00"))),"") -> 2022-23 | F41: =IFERROR((LEFT(G41,4)-1&IF(MID(G41,5,1)="","","-"&TEXT(MOD(MID(G41,6,2)-1,100),"00"))),"") -> 2023-24 | G41: =IFERROR((LEFT(H41,4)-1&IF(MID(H41,5,1)="","","-"&TEXT(MOD(MID(H41,6,2)-1,100),"00"))),"") -> 2024-25 | H41: =IFERROR((LEFT(I41,4)-1&IF(MID(I41,5,1)="","","-"&TEXT(MOD(MID(I41,6,2)-1,100),"00"))),"") -> 2025-26 | I41: =$C$8 -> 2026-27 | J41: =IFERROR((LEFT(I41,4)+1&IF(MID(I41,5,1)="","","-"&TEXT(MOD(MID(I41,6,2)+1,100),"00"))),"") -> 2027-28 | K41: =IFERROR((LEFT(J41,4)+1&IF(MID(J41,5,1)="","","-"&TEXT(MOD(MID(J41,6,2)+1,100),"00"))),"") -> 2028-29 | L41: =IFERROR((LEFT(K41,4)+1&IF(MID(K41,5,1)="","","-"&TEXT(MOD(MID(K41,6,2)+1,100),"00"))),"") -> 2029-30 | M41: =IFERROR((LEFT(L41,4)+1&IF(MID(L41,5,1)="","","-"&TEXT(MOD(MID(L41,6,2)+1,100),"00"))),"") -> 2030-31 | N41: =IF(COUNTA(B42:M45)=0,1,0) -> 0
B42: WPI - Real labour price growth - Deloitte WPI | F42: -0.01251504832 | G42: 0.01196076527 | H42: 0.00677494316 | I42: 0.006674253438 | J42: 0.009189869369 | K42: 0.010844237 | L42: 0.01067756718 | M42: 0.01022033755
B43: WPI - Oxford Economics actual and forecast October 2024 | D43: -0.02812040787 | E43: -0.04374835876 | F43: -0.01509360982 | G43: ='[2]Input| Prices'!K40 -> 0.01454257127 | H43: ='[2]Input| Prices'!L40 -> 0.008746589122 | I43: ='[2]Input| Prices'!M40 -> 0.009567382707 | J43: ='[2]Input| Prices'!N40 -> 0.009911294966 | K43: ='[2]Input| Prices'!O40 -> 0.01155443281 | L43: ='[2]Input| Prices'!P40 -> 0.01387115665 | M43: ='[2]Input| Prices'!Q40 -> 0.01383049475
B44: Real Labour Price Growth - Super Guarantee | E44: 0.005 | F44: 0.005 | G44: 0.005 | H44: 0.005
B47: Weights (per cent) | D47: =IFERROR((LEFT(E47,4)-1&IF(MID(E47,5,1)="","","-"&TEXT(MOD(MID(E47,6,2)-1,100),"00"))),"") -> 2021-22 | E47: =IFERROR((LEFT(F47,4)-1&IF(MID(F47,5,1)="","","-"&TEXT(MOD(MID(F47,6,2)-1,100),"00"))),"") -> 2022-23 | F47: =IFERROR((LEFT(G47,4)-1&IF(MID(G47,5,1)="","","-"&TEXT(MOD(MID(G47,6,2)-1,100),"00"))),"") -> 2023-24 | G47: =IFERROR((LEFT(H47,4)-1&IF(MID(H47,5,1)="","","-"&TEXT(MOD(MID(H47,6,2)-1,100),"00"))),"") -> 2024-25 | H47: =IFERROR((LEFT(I47,4)-1&IF(MID(I47,5,1)="","","-"&TEXT(MOD(MID(I47,6,2)-1,100),"00"))),"") -> 2025-26 | I47: =$C$8 -> 2026-27 | J47: =IFERROR((LEFT(I47,4)+1&IF(MID(I47,5,1)="","","-"&TEXT(MOD(MID(I47,6,2)+1,100),"00"))),"") -> 2027-28 | K47: =IFERROR((LEFT(J47,4)+1&IF(MID(J47,5,1)="","","-"&TEXT(MOD(MID(J47,6,2)+1,100),"00"))),"") -> 2028-29 | L47: =IFERROR((LEFT(K47,4)+1&IF(MID(K47,5,1)="","","-"&TEXT(MOD(MID(K47,6,2)+1,100),"00"))),"") -> 2029-30 | M47: =IFERROR((LEFT(L47,4)+1&IF(MID(L47,5,1)="","","-"&TEXT(MOD(MID(L47,6,2)+1,100),"00"))),"") -> 2030-31 | N47: =IF(COUNTA(D48:M51)=0,1,0) -> 0
B48: =B42 -> WPI - Real labour price growth - Deloitte WPI | F48: 0.5 | G48: 0.5 | H48: 0.5 | I48: 0.5 | J48: 0.5 | K48: 0.5 | L48: 0.5 | M48: 0.5
B49: =B43 -> WPI - Oxford Economics actual and forecast October 2024 | D49: 1 | E49: 1 | F49: 0.5 | G49: 0.5 | H49: 0.5 | I49: 0.5 | J49: 0.5 | K49: 0.5 | L49: 0.5 | M49: 0.5
B50: =B44 -> Real Labour Price Growth - Super Guarantee
B51: =B45 -> 0
D52: =IF(OR(SUM(D48:D51)=0,SUM(D48:D51)=1),0,1) -> 0 | E52: 0 | F52: 0 | G52: 0 | H52: 0 | I52: 0 | J52: 0 | K52: 0 | L52: 0 | M52: 0 | N52: =IF(SUM(D52:M52)=0,0,1) -> 0
A54: 4.3.2 | B54: Real price escalation (non-wage) | D54: Current regulatory period | I54: Forecast regulatory period
D56: =IFERROR((LEFT(E56,4)-1&IF(MID(E56,5,1)="","","-"&TEXT(MOD(MID(E56,6,2)-1,100),"00"))),"") -> 2021-22 | E56: =IFERROR((LEFT(F56,4)-1&IF(MID(F56,5,1)="","","-"&TEXT(MOD(MID(F56,6,2)-1,100),"00"))),"") -> 2022-23 | F56: =IFERROR((LEFT(G56,4)-1&IF(MID(G56,5,1)="","","-"&TEXT(MOD(MID(G56,6,2)-1,100),"00"))),"") -> 2023-24 | G56: =IFERROR((LEFT(H56,4)-1&IF(MID(H56,5,1)="","","-"&TEXT(MOD(MID(H56,6,2)-1,100),"00"))),"") -> 2024-25 | H56: =IFERROR((LEFT(I56,4)-1&IF(MID(I56,5,1)="","","-"&TEXT(MOD(MID(I56,6,2)-1,100),"00"))),"") -> 2025-26 | I56: =$C$8 -> 2026-27 | J56: =IFERROR((LEFT(I56,4)+1&IF(MID(I56,5,1)="","","-"&TEXT(MOD(MID(I56,6,2)+1,100),"00"))),"") -> 2027-28 | K56: =IFERROR((LEFT(J56,4)+1&IF(MID(J56,5,1)="","","-"&TEXT(MOD(MID(J56,6,2)+1,100),"00"))),"") -> 2028-29 | L56: =IFERROR((LEFT(K56,4)+1&IF(MID(K56,5,1)="","","-"&TEXT(MOD(MID(K56,6,2)+1,100),"00"))),"") -> 2029-30 | M56: =IFERROR((LEFT(L56,4)+1&IF(MID(L56,5,1)="","","-"&TEXT(MOD(MID(L56,6,2)+1,100),"00"))),"") -> 2030-31
B57: Materials - Real price growth | D57: =-D$28 -> 0 | E57: 0 | F57: 0 | G57: 0 | H57: 0 | I57: 0 | J57: 0 | K57: 0 | L57: 0 | M57: 0
B58: Cumulative Labour - Wage price growth index | D58: =1+D57 -> 1 | E58: =IFERROR(D58*(1+E57),"") -> 1 | F58: 1 | G58: 1 | H58: 1 | I58: 1 | J58: 1 | K58: 1 | L58: 1 | M58: 1
B59: ="Escalate from base year to " & C28 -> Escalate from base year to | I59: =I58/INDEX($D$56:$M$58,3,MATCH($C$9,$D$56:$M$56,0)) -> 1
D61: =IFERROR((LEFT(E61,4)-1&IF(MID(E61,5,1)="","","-"&TEXT(MOD(MID(E61,6,2)-1,100),"00"))),"") -> 2021-22 | E61: =IFERROR((LEFT(F61,4)-1&IF(MID(F61,5,1)="","","-"&TEXT(MOD(MID(F61,6,2)-1,100),"00"))),"") -> 2022-23 | F61: =IFERROR((LEFT(G61,4)-1&IF(MID(G61,5,1)="","","-"&TEXT(MOD(MID(G61,6,2)-1,100),"00"))),"") -> 2023-24 | G61: =IFERROR((LEFT(H61,4)-1&IF(MID(H61,5,1)="","","-"&TEXT(MOD(MID(H61,6,2)-1,100),"00"))),"") -> 2024-25 | H61: =IFERROR((LEFT(I61,4)-1&IF(MID(I61,5,1)="","","-"&TEXT(MOD(MID(I61,6,2)-1,100),"00"))),"") -> 2025-26 | I61: =$C$8 -> 2026-27 | J61: =IFERROR((LEFT(I61,4)+1&IF(MID(I61,5,1)="","","-"&TEXT(MOD(MID(I61,6,2)+1,100),"00"))),"") -> 2027-28 | K61: =IFERROR((LEFT(J61,4)+1&IF(MID(J61,5,1)="","","-"&TEXT(MOD(MID(J61,6,2)+1,100),"00"))),"") -> 2028-29 | L61: =IFERROR((LEFT(K61,4)+1&IF(MID(K61,5,1)="","","-"&TEXT(MOD(MID(K61,6,2)+1,100),"00"))),"") -> 2029-30 | M61: =IFERROR((LEFT(L61,4)+1&IF(MID(L61,5,1)="","","-"&TEXT(MOD(MID(L61,6,2)+1,100),"00"))),"") -> 2030-31
B62: Contracts - Real price growth | D62: =-D$29 -> 0 | E62: 0 | F62: 0 | G62: 0 | H62: 0 | I62: 0 | J62: 0 | K62: 0 | L62: 0 | M62: 0
B63: Cumulative Labour - Wage price growth index | D63: =1+D62 -> 1 | E63: =IFERROR(D63*(1+E62),"") -> 1 | F63: 1 | G63: 1 | H63: 1 | I63: 1 | J63: 1 | K63: 1 | L63: 1 | M63: 1
B64: ="Escalate from base year to " & C33 -> Escalate from base year to | I64: =I63/INDEX($D$61:$M$63,3,MATCH($C$9,$D$61:$M$61,0)) -> 1
D66: =IFERROR((LEFT(E66,4)-1&IF(MID(E66,5,1)="","","-"&TEXT(MOD(MID(E66,6,2)-1,100),"00"))),"") -> 2021-22 | E66: =IFERROR((LEFT(F66,4)-1&IF(MID(F66,5,1)="","","-"&TEXT(MOD(MID(F66,6,2)-1,100),"00"))),"") -> 2022-23 | F66: =IFERROR((LEFT(G66,4)-1&IF(MID(G66,5,1)="","","-"&TEXT(MOD(MID(G66,6,2)-1,100),"00"))),"") -> 2023-24 | G66: =IFERROR((LEFT(H66,4)-1&IF(MID(H66,5,1)="","","-"&TEXT(MOD(MID(H66,6,2)-1,100),"00"))),"") -> 2024-25 | H66: =IFERROR((LEFT(I66,4)-1&IF(MID(I66,5,1)="","","-"&TEXT(MOD(MID(I66,6,2)-1,100),"00"))),"") -> 2025-26 | I66: =$C$8 -> 2026-27 | J66: =IFERROR((LEFT(I66,4)+1&IF(MID(I66,5,1)="","","-"&TEXT(MOD(MID(I66,6,2)+1,100),"00"))),"") -> 2027-28 | K66: =IFERROR((LEFT(J66,4)+1&IF(MID(J66,5,1)="","","-"&TEXT(MOD(MID(J66,6,2)+1,100),"00"))),"") -> 2028-29 | L66: =IFERROR((LEFT(K66,4)+1&IF(MID(K66,5,1)="","","-"&TEXT(MOD(MID(K66,6,2)+1,100),"00"))),"") -> 2029-30 | M66: =IFERROR((LEFT(L66,4)+1&IF(MID(L66,5,1)="","","-"&TEXT(MOD(MID(L66,6,2)+1,100),"00"))),"") -> 2030-31
B67: Vehicles - Real price growth | D67: =-D$30 -> 0 | E67: 0 | F67: 0 | G67: 0 | H67: 0 | I67: 0 | J67: 0 | K67: 0 | L67: 0 | M67: 0
B68: Cumulative Labour - Wage price growth index | D68: =1+D67 -> 1 | E68: =IFERROR(D68*(1+E67),"") -> 1 | F68: 1 | G68: 1 | H68: 1 | I68: 1 | J68: 1 | K68: 1 | L68: 1 | M68: 1
B69: ="Escalate from base year to " & C38 -> Escalate from base year to | I69: =I68/INDEX($D$66:$M$68,3,MATCH($C$9,$D$66:$M$66,0)) -> 1
D71: =IFERROR((LEFT(E71,4)-1&IF(MID(E71,5,1)="","","-"&TEXT(MOD(MID(E71,6,2)-1,100),"00"))),"") -> 2021-22 | E71: =IFERROR((LEFT(F71,4)-1&IF(MID(F71,5,1)="","","-"&TEXT(MOD(MID(F71,6,2)-1,100),"00"))),"") -> 2022-23 | F71: =IFERROR((LEFT(G71,4)-1&IF(MID(G71,5,1)="","","-"&TEXT(MOD(MID(G71,6,2)-1,100),"00"))),"") -> 2023-24 | G71: =IFERROR((LEFT(H71,4)-1&IF(MID(H71,5,1)="","","-"&TEXT(MOD(MID(H71,6,2)-1,100),"00"))),"") -> 2024-25 | H71: =IFERROR((LEFT(I71,4)-1&IF(MID(I71,5,1)="","","-"&TEXT(MOD(MID(I71,6,2)-1,100),"00"))),"") -> 2025-26 | I71: =$C$8 -> 2026-27 | J71: =IFERROR((LEFT(I71,4)+1&IF(MID(I71,5,1)="","","-"&TEXT(MOD(MID(I71,6,2)+1,100),"00"))),"") -> 2027-28 | K71: =IFERROR((LEFT(J71,4)+1&IF(MID(J71,5,1)="","","-"&TEXT(MOD(MID(J71,6,2)+1,100),"00"))),"") -> 2028-29 | L71: =IFERROR((LEFT(K71,4)+1&IF(MID(K71,5,1)="","","-"&TEXT(MOD(MID(K71,6,2)+1,100),"00"))),"") -> 2029-30 | M71: =IFERROR((LEFT(L71,4)+1&IF(MID(L71,5,1)="","","-"&TEXT(MOD(MID(L71,6,2)+1,100),"00"))),"") -> 2030-31
B72: Other - Real price growth | D72: =-D$31 -> 0 | E72: 0 | F72: 0 | G72: 0 | H72: 0 | I72: 0 | J72: 0 | K72: 0 | L72: 0 | M72: 0
B73: Cumulative Labour - Wage price growth index | D73: =1+D72 -> 1 | E73: =IFERROR(D73*(1+E72),"") -> 1 | F73: 1 | G73: 1 | H73: 1 | I73: 1 | J73: 1 | K73: 1 | L73: 1 | M73: 1
B74: ="Escalate from base year to " & C43 -> Escalate from base year to | I74: =I73/INDEX($D$71:$M$73,3,MATCH($C$9,$D$71:$M$71,0)) -> 1

Sheet Input|Indirect Cost Rates
B1: ='Input|Setup'!$B$1 -> JEN 2026-27 - Labour Rates | C1: Key: | D1: Input | F1: Sheet Validation | G1: NA
B2: =IFERROR(MID(CELL("filename",A1),FIND("]",CELL("filename",A1))+1,255),"") -> Input|Indirect Cost Rates | D2: Formula
A5: 5.1 | B5: On costs
B7: On cost drivers | C7: Unit | D7: Administrative Officer (BH) | E7: Field Worker (BH) | F7: Technical Specialist (BH) | G7: Senior Engineer (BH) | H7: Engineer (BH) | I7: Field Worker (AH) | J7: Notes
B8: Standard leave (annual leave, sick leave, public holidays) | C8: Per cent | D8: 0.1715 | E8: 0.1878 | F8: 0.1715 | G8: 0.1715 | H8: 0.1715 | I8: 0 | J8: Source: Sections 17, 20 and 26 of Jemena Asset Management Enterprise Agreement (Vic) 2021
B9: Superannuation | C9: Per cent | D9: 0.12 | E9: 0.12 | F9: 0.12 | G9: 0.12 | H9: 0.12 | I9: 0.12 | J9: Source: Section 19(2) of the Superannuation Guarantee (Administration) Act 1992.
B10: Workcover Insurance | C10: Per cent | D10: 0.00651 | E10: 0.00651 | F10: 0.00651 | G10: 0.00651 | H10: 0.00651 | I10: 0.00651 | J10: Source: Workcover Premiums Order No.32 2024/25
B11: Payroll tax | C11: Per cent | D11: 0.0585 | E11: 0.0585 | F11: 0.0585 | G11: 0.0585 | H11: 0.0585 | I11: 0.0585 | J11: Source: State Revenue Office https://www.sro.vic.gov.au/payroll-tax
B12: Annual leave loading | C12: Per cent | D12: 0.02 | E12: 0.02 | F12: 0.02 | G12: 0.02 | H12: 0.02 | I12: 0 | J12: Source: Section 17.7 of Jemena Asset Management Enterprise Agreement (Vic) 2021
B13: Long Service leave allowance | C13: Per cent | D13: 0.025 | E13: 0.025 | F13: 0.025 | G13: 0.025 | H13: 0.025 | I13: 0 | J13: Source: Section 19.1 of Jemena Asset Management Enterprise Agreement (Vic) 2021
B14: Non-chargeable time | C14: Per cent | D14: 0 | E14: 0 | F14: 0 | G14: 0 | H14: 0 | I14: 0
B15: Other | C15: Per cent | D15: 0 | E15: 0 | F15: 0 | G15: 0 | H15: 0 | I15: 0
B16: Allowances | C16: Per cent | D16: 0 | E16: 0.007 | F16: 0 | G16: 0 | H16: 0 | I16: 0 | J16: Source: Section 36 of Jemena Asset Management Enterprise Agreement (Vic) 2021
B17: Training & Development | C17: Per cent | D17: 0 | E17: 0 | F17: 0.007571406072 | G17: 0.007571406072 | H17: 0.007571406072 | I17: 0 | J17: Source: Section 39 of Jemena Asset Management Enterprise Agreement (Vic) 2021
B18: Safety Meetings/Toolbox Talks | C18: Per cent
B19: Compounded on cost factor | C19: Per cent | D19: =PRODUCT(1+D8:D17)-1 -> 0.4614814561 | E19: =PRODUCT(1+E8:E17)-1 -> 0.4921889093 | F19: =PRODUCT(1+F8:F17)-1 -> 0.4725469257 | G19: =PRODUCT(1+G8:G17)-1 -> 0.4725469257 | H19: =PRODUCT(1+H8:H17)-1 -> 0.4725469257 | I19: =PRODUCT(1+I8:I17)-1 -> 0.1932377352
A22: 5.2 | B22: Overheads
B24: Type of Overhead | C24: Unit | D24: Input | E24: Type | F24: Notes
B25: Network Overhead | C25: Per cent | D25: 0.2093290404 | E25: Capex | F25: Marden Jacob Associates, Review of ancillary network services: CitiPower, Powercor, United Energy, Jemena and AusNet, Advice to the Australian Energy Regulator, 30 Jun 2020
B26: Network Overhead | C26: Per cent | D26: 0.2093290404 | E26: Opex | F26: Marden Jacob Associates, Review of ancillary network services: CitiPower, Powercor, United Energy, Jemena and AusNet, Advice to the Australian Energy Regulator, 30 Jun 2020
B27: Corporate Overhead | C27: Per cent | D27: 0.4009715377 | E27: Capex | F27: Marden Jacob Associates, Review of ancillary network services: CitiPower, Powercor, United Energy, Jemena and AusNet, Advice to the Australian Energy Regulator, 30 Jun 2020
B28: Corporate Overhead | C28: Per cent | D28: 0.4009715377 | E28: Opex | F28: Marden Jacob Associates, Review of ancillary network services: CitiPower, Powercor, United Energy, Jemena and AusNet, Advice to the Australian Energy Regulator, 30 Jun 2020
C29: Per cent
A32: 5.3 | B32: Vehicle Allowance | G32: =IFERROR("9.2 Year 1 labour rates build up, $'s ($"&#REF!&")","") ->  | H32: =IFERROR("9.2 Year 1 labour rates build up, $'s ($"&#REF!&")","") ->  | I32: =IFERROR("9.2 Year 1 labour rates build up, $'s ($"&#REF!&")","") ->  | J32: =IFERROR("9.2 Year 1 labour rates build up, $'s ($"&#REF!&")","") ->  | K32: =IFERROR("9.2 Year 1 labour rates build up, $'s ($"&#REF!&")","") ->  | L32: =IFERROR("9.2 Year 1 labour rates build up, $'s ($"&#REF!&")","") -> 
B34: Vehicle costs | C34: Notes | G34: ($Jan21-Jun21) | H34: ='Input|Escalations'!$G$15 -> 2024-25
B35: Vehicle allowance for Fleet Worker | C35: Marden Jacob Associates, Review of ancillary network services: CitiPower, Powercor, United Energy, Jemena and AusNet, Advice to the Australian Energy Regulator, 30 Jun 2020 | G35: 20 | H35: 22.44023083

Sheet Input|Labour Rates
B1: =IFERROR(Index!B1,"") -> JEN 2026-27 - Labour Rates | D1: Key: | E1: Input | F1: Sheet Validation | G1: =SUM(I8:I18)+SUM(K8:K18)+SUM(K24:K30) -> 0
B2: =IFERROR(MID(CELL("filename",A1),FIND("]",CELL("filename",A1))+1,255),"") -> Input|Labour Rates | E2: Formula
A5: 3.1 | B5: Labour Rates | J5: 3.2 Notes and sources
B7: Labour category | C7: Hours | D7: ="Base labour rate ($" & 'Input|Setup'!E7 & ")" -> Base labour rate ($2024-25) | E7: ='Input|Indirect Cost Rates'!$B$5 &" (%)" -> On costs (%) | F7: ='Input|Indirect Cost Rates'!$B$22 & " (%)" -> Overheads (%)
A8: 1 | B8: Administrative Officer | C8: Business hours | D8: ='Calc|Labour Rates'!D8/'Input|Labour Rates'!C29/'Input|Labour Rates'!C28 -> 45.42426261 | E8: ='Input|Indirect Cost Rates'!$D$19 -> 0.4614814561 | F8: =SUM('Input|Indirect Cost Rates'!D26,'Input|Indirect Cost Rates'!D28) -> 0.610300578 | J8: AER Att 11-04 ACS Fee based and quoted services model-Draft Decision
A9: =A8+1 -> 2 | B9: Field Worker | C9: Business hours | D9: ='Calc|Labour Rates'!D9/'Input|Labour Rates'!C29/'Input|Labour Rates'!C28 -> 76.01667487 | E9: ='Input|Indirect Cost Rates'!$E$19 -> 0.4921889093 | F9: =$F$8 -> 0.610300578 | J9: Base labour rates are taken from Hays Salary Guide 2022-23 (escalated to $2024-25) for Vic-Melbourne and applying the AER's labour rate methodology
A10: 3 | B10: Technical Specialist | C10: Business hours | D10: ='Calc|Labour Rates'!D10/'Input|Labour Rates'!C29/'Input|Labour Rates'!C28 -> 76.01667487 | E10: ='Input|Indirect Cost Rates'!$F$19 -> 0.4725469257 | F10: =$F$8 -> 0.610300578 | J10: Base labour rates are taken from Hays Salary Guide 2022-23 (escalated to $2024-25) for Vic-Melbourne and applying the AER's labour rate methodology
A11: 4 | B11: Engineer | C11: Business hours | D11: ='Calc|Labour Rates'!D11/'Input|Labour Rates'!C29/'Input|Labour Rates'!C28 -> 100.9428058 | E11: ='Input|Indirect Cost Rates'!$H$19 -> 0.4725469257 | F11: =$F$8 -> 0.610300578 | J11: AER Att 11-04 ACS Fee based and quoted services model-Draft Decision
A12: 5 | B12: Senior Engineer | C12: Business hours | D12: ='Calc|Labour Rates'!D12/'Input|Labour Rates'!C29/'Input|Labour Rates'!C28 -> 121.131367 | E12: ='Input|Indirect Cost Rates'!$G$19 -> 0.4725469257 | F12: =$F$8 -> 0.610300578 | J12: AER Att 11-04 ACS Fee based and quoted services model-Draft Decision
A13: 6 | B13: Administrative Officer | C13: After Hours | D13: 0 | E13: 0 | F13: 0 | J13: Base labour rates are taken from Hays Salary Guide 2024-25 for Vic-Melbourne and applying the AER"s labour rate methodology
A14: 7 | B14: Field Worker* | C14: After Hours | D14: ='Calc|Labour Rates'!D13/'Input|Labour Rates'!C29/'Input|Labour Rates'!C28 -> 187.6591252 | E14: ='Input|Indirect Cost Rates'!$I$19 -> 0.1932377352 | F14: =$F$8 -> 0.610300578 | J14: Base labour rates are taken from Hays Salary Guide 2022-23 (escalated to $2024-25) for Vic-Melbourne and applying the AER's labour rate methodology
A15: 8 | B15: Technical Specialist | C15: After Hours | D15: 0 | E15: 0 | F15: 0
A16: 9 | B16: Engineer | C16: After Hours | D16: 0 | E16: 0 | F16: 0
A17: 10 | B17: Senior Engineer | C17: After Hours | D17: 0 | E17: 0 | F17: 0
A18: 11
J19: AER Att 11-04 ACS Fee based and quoted services model-Draft Decision
A21: 3.3 | B21: Assumptions | J21: 3.4 Notes and sources
C23: Administrative officer,Technical Specialist,Engineer, Senior Engineer | D23: Field Worker (BH) | E23: Field Worker (AH)
B24: Overhead rate | C24: =SUM('Input|Indirect Cost Rates'!D26:D27) -> 0.610300578 | D24: =$C$24 -> 0.610300578 | E24: =$C$24 -> 0.610300578 | J24: Based on Network and Corporate overhead percentages in the Input|Indirect Cost Rates tab
B25: On-costs | C25: ='Input|Indirect Cost Rates'!D19 -> 0.4614814561 | D25: ='Input|Indirect Cost Rates'!E19 -> 0.4921889093 | E25: ='Input|Indirect Cost Rates'!I19 -> 0.1932377352 | J25: Based on cost percentages in the Input|Indirect Cost Rates tab
B28: Weeks | C28: 52.14 | J28: Review of ancillary network service: CitiPower, Poweror, Imoted Energy, Jemen and Ausnet - Advice to AER 30 Jun 2020. A Mardson Jacob Report
B29: Hours per week | C29: 38 | J29: Review of ancillary network service: CitiPower, Poweror, Imoted Energy, Jemen and Ausnet - Advice to AER 30 Jun 2020. A Mardson Jacob Report
B30: Wage Measure Stickiness | C30: 0.025 | J30: Review of ancillary network service: CitiPower, Poweror, Imoted Energy, Jemen and Ausnet - Advice to AER 30 Jun 2020. A Mardson Jacob Report

Sheet Calc|Labour Rates
B1: =IFERROR(Index!B1,"") -> JEN 2026-27 - Labour Rates | C1: Key: | D1: Input | G1: Sheet Validation | H1: NA
B2: =IFERROR(MID(CELL("filename",A1),FIND("]",CELL("filename",A1))+1,255),"") -> Calc|Labour Rates | D2: Formula
A5: 6.1 | B5: ="Labour Rates ($" & 'Input|Setup'!E7 & ")" -> Labour Rates ($2024-25) | G5: ="6.2 Labour Rates Build up, $'s ($2026-27)" -> 6.2 Labour Rates Build up, $'s ($2026-27) | I5: =IFERROR("9.2 Year 1 labour rates build up, $'s ($"&#REF!&")","") ->  | J5: =IFERROR("9.2 Year 1 labour rates build up, $'s ($"&#REF!&")","") ->  | K5: =IFERROR("9.2 Year 1 labour rates build up, $'s ($"&#REF!&")","") ->  | L5: =IFERROR("9.2 Year 1 labour rates build up, $'s ($"&#REF!&")","") ->  | M5: =IFERROR("9.2 Year 1 labour rates build up, $'s ($"&#REF!&")","") -> 
B7: ='Input|Labour Rates'!B7 -> Labour category | C7: ='Input|Labour Rates'!C7 -> Hours | D7: ="Base labour rate" -> Base labour rate | E7: TOTAL LABOUR RATE (incl. On Costs & Overheads) | G7: BASE LABOUR RATE ($/hour) | H7: On costs | I7: STANDARD LABOUR RATE (EXCL OVERHEADS) | J7: Overhead | K7: STANDARD LABOUR RATE (INCL OVERHEADS) | L7: Wage Measure Stickiness | M7: Vehicle and Other costs
A8: 1 | B8: Administrative Officer | C8: =IF(ISBLANK('Input|Labour Rates'!C8),"",'Input|Labour Rates'!C8) -> Business hours | D8: ='MJ- hays categories_Rates'!E8*10^3 -> 90000 | E8: =G8+H8+J8+L8+M8 -> 117.5664679 | G8: ='Input|Labour Rates'!D8*'Input|Escalations'!G18*'Input|Escalations'!G39 -> 48.73706222 | H8: =IFERROR(G8*('Input|Labour Rates'!E8),"") -> 22.49125044 | I8: =SUM(G8:H8) -> 71.22831266 | J8: =IFERROR(I8*'Input|Labour Rates'!F8,0) -> 43.47068039 | K8: =SUM(I8:J8) -> 114.698993 | L8: =K8*'Input|Labour Rates'!$C$30 -> 2.867474826
A9: =A8+1 -> 2 | B9: Field Worker | C9: =IF(ISBLANK('Input|Labour Rates'!C9),"",'Input|Labour Rates'!C9) -> Business hours | D9: =D18*'Input|Escalations'!G22*'Input|Escalations'!G40 -> 150613.3583 | E9: 224.9559924 | G9: ='Input|Labour Rates'!D9*'Input|Escalations'!G18*'Input|Escalations'!G39 -> 81.56058458 | H9: =IFERROR(G9*('Input|Labour Rates'!E9),0) -> 40.14321517 | I9: 121.7037997 | J9: =IFERROR(I9*'Input|Labour Rates'!F9,0) -> 74.27589933 | K9: 195.9796991 | L9: =K9*'Input|Labour Rates'!$C$30 -> 4.899492477 | M9: ='Input|Indirect Cost Rates'!$H$35*'Input|Escalations'!G18*'Input|Escalations'!G39 -> 24.07680088
A10: 3 | B10: Technical Specialist | C10: =IF(ISBLANK('Input|Labour Rates'!C10),"",'Input|Labour Rates'!C10) -> Business hours | D10: =D19*'Input|Escalations'!G22*'Input|Escalations'!G40 -> 150613.3583 | E10: 222.3117791 | G10: ='Input|Labour Rates'!D10*'Input|Escalations'!G18*'Input|Escalations'!G39 -> 81.56058458 | H10: =IFERROR(G10*('Input|Labour Rates'!E10),0) -> 38.5412035 | I10: 120.1017881 | J10: =IFERROR(I10*'Input|Labour Rates'!F10,0) -> 73.29819068 | K10: 193.3999788 | L10: =K10*'Input|Labour Rates'!$C$30 -> 4.834999469 | M10: ='Input|Indirect Cost Rates'!$H$35*'Input|Escalations'!G18*'Input|Escalations'!G39 -> 24.07680088
A11: 4 | B11: Engineer | C11: =IF(ISBLANK('Input|Labour Rates'!C11),"",'Input|Labour Rates'!C11) -> Business hours | D11: ='MJ- hays categories_Rates'!E6*10^3 -> 200000 | E11: 263.2369141 | G11: ='Input|Labour Rates'!D11*'Input|Escalations'!G18*'Input|Escalations'!G39 -> 108.3045827 | H11: =IFERROR(G11*('Input|Labour Rates'!E11),0) -> 51.17899759 | I11: 159.4835803 | J11: =IFERROR(I11*'Input|Labour Rates'!F11,0) -> 97.33292124 | K11: 256.8165015 | L11: =K11*'Input|Labour Rates'!$C$30 -> 6.420412538
A12: 5 | B12: Senior Engineer* | C12: =IF(ISBLANK('Input|Labour Rates'!C12),"",'Input|Labour Rates'!C12) -> Business hours | D12: =D11*1.2 -> 240000 | E12: 315.8842969 | G12: ='Input|Labour Rates'!D12*'Input|Escalations'!G18*'Input|Escalations'!G39 -> 129.9654992 | H12: =IFERROR(G12*('Input|Labour Rates'!E12),0) -> 61.41479711 | I12: 191.3802964 | J12: =IFERROR(I12*'Input|Labour Rates'!F12,0) -> 116.7995055 | K12: 308.1798018 | L12: =K12*'Input|Labour Rates'!$C$30 -> 7.704495046
A13: 6 | B13: Field Worker | C13: =IF(ISBLANK('Input|Labour Rates'!C14),"",'Input|Labour Rates'!C14) -> After Hours | D13: =((((E9*1.75)-M13)/((1+'Input|Labour Rates'!F14)*(1+'Input|Labour Rates'!C30)))/(1+'Input|Labour Rates'!E14))*'Input|Labour Rates'!$C$28*'Input|Labour Rates'!$C$29 -> 371812.7779 | E13: 420.6277028 | G13: ='Input|Labour Rates'!D14*'Input|Escalations'!G18*'Input|Escalations'!G39 -> 201.3451388 | H13: =IFERROR(G13*('Input|Labour Rates'!E14),0) -> 38.90747861 | I13: 240.2526174 | J13: =IFERROR(I13*'Input|Labour Rates'!F14,0) -> 146.6263113 | K13: 386.8789287 | L13: =K13*'Input|Labour Rates'!$C$30 -> 9.671973217 | M13: ='Input|Indirect Cost Rates'!$H$35*'Input|Escalations'!G18*'Input|Escalations'!G39 -> 24.07680088
A14: 7
B15: *Used the AER's approach and applied a 20% uplift for engineer salary
B17: Labour category | D17: BASE LABOUR RATE ($2022-23) | G17: BASE LABOUR RATE ($/hour) ($2022-23)
B18: Field Worker | D18: 133000 | G18: =D18/'Input|Labour Rates'!$C$28/'Input|Labour Rates'!$C$29 -> 67.12696586
B19: Technical Specialist | D19: ='MJ- hays categories_Rates'!E15*10^3 -> 133000 | G19: =D19/'Input|Labour Rates'!$C$28/'Input|Labour Rates'!$C$29 -> 67.12696586

Sheet Output|Labour Rates
B1: =Index!B1 -> JEN 2026-27 - Labour Rates | E1: Key: | F1: Input | H1: Sheet Validation | I1: NA
B2: =MID(CELL("filename",A1),FIND("]",CELL("filename",A1))+1,255) -> Output|Labour Rates | F2: Formula
B4: 1.1 Labour Rates for 2026-27
B6: Labour category | C6: Hours [List] | D6: Labour Rate $2026-27 | E6: AER DD Labour Rate $2026-27
A7: 1 | B7: ='Input|Labour Rates'!B8 -> Administrative Officer | C7: ='Input|Labour Rates'!C8 -> Business hours | D7: ='Calc|Labour Rates'!E8 -> 117.5664679 | E7: ='[1]Output|Quoted'!D12 -> 120.34 | F7: =D7/E7-1 -> -0.02304746662
A8: 2 | B8: ='Input|Labour Rates'!B9 -> Field Worker | C8: ='Input|Labour Rates'!C9 -> Business hours | D8: ='Calc|Labour Rates'!E9 -> 224.9559924 | E8: ='[1]Output|Quoted'!D13 -> 205.1189985 | F8: 0.09670968596
A9: 3 | B9: ='Input|Labour Rates'!B10 -> Technical Specialist | C9: ='Input|Labour Rates'!C10 -> Business hours | D9: ='Calc|Labour Rates'!E10 -> 222.3117791 | E9: ='[1]Output|Quoted'!D14 -> 218.8440407 | F9: 0.01584570625
A10: 4 | B10: ='Input|Labour Rates'!B11 -> Engineer | C10: ='Input|Labour Rates'!C11 -> Business hours | D10: ='Calc|Labour Rates'!E11 -> 263.2369141 | E10: ='[1]Output|Quoted'!D15 -> 253.35 | F10: 0.039024725
A11: 5 | B11: ='Input|Labour Rates'!B12 -> Senior Engineer | C11: ='Input|Labour Rates'!C12 -> Business hours | D11: ='Calc|Labour Rates'!E12 -> 315.8842969 | E11: ='[1]Output|Quoted'!D16 -> 304.02 | F11: 0.039024725
A12: 6 | B12: ='Input|Labour Rates'!B14 -> Field Worker* | C12: ='Input|Labour Rates'!C14 -> After Hours | D12: ='Calc|Labour Rates'!E13 -> 420.6277028 | E12: ='[1]Output|Quoted'!$D$18 -> 359.7509969 | F12: 0.1692190052
A13: 7

Sheet MJ- hays categories_Rates
A1: Hays categories included in Marsden Jacob analysis - Melbourne ($'000 pa)
F3: Source
A4: Hays 2024-25 salary guide Vic Melbourne ($'000 pa) | F4: Hays Salary Guide FY24-25
A5: Energy Sector | B5: Category | C5: Title | D5: Low | E5: High
A6: Engineer | B6: Energy-Design Engineering | C6: Power systems engineer | D6: 120 | E6: 200 | F6: Power systems engineer
A7: Senior Engineer | B7: Energy-Design Engineering | C7: Power systems engineer | D7: 170 | E7: 200 | F7: uplift by 20%
A8: Admin | B8: Office Support | C8: Project coordinator | D8: 80 | E8: 90
A12: Hays 2022-23 salary guide Vic Melbourne ($'000 pa) | F12: Hays Salary Guide FY22-23
A13: Energy Sector | B13: Category | C13: Title | D13: Low | E13: High
A14: Field worker | B14: Energy O&M | C14: Electrician | D14: 92 | E14: 122
A15: Techical Specialist | B15: Energy Project Development | C15: Planner/Scheduler | D15: 107 | E15: 133
A16: Field worker | B16: Energy O&M | C16: G&B lines worker | D16: 87 | E16: 133

Sheet Model Validation
B1: =Index!B1 -> JEN 2026-27 - Labour Rates
B2: =MID(CELL("filename",A1),FIND("]",CELL("filename",A1))+1,255) -> Model Validation
B4: Overall Model Check | C4: =IF(SUM(C9:C13)=0,0,1) -> 0
B6: =Index!B7 -> Worksheet name
B8: =Index!B9 -> Output|Labour Rates
B9: =Index!B10 -> Input | Setup | C9: ='Input|Labour Rates'!G1 -> 0
B10: =Index!B11 -> Input|Labour Rates | C10: ='Input|Indirect Cost Rates'!G1 -> NA
B11: =Index!B12 -> Input|Escalations | C11: ='Input|Escalations'!G1 -> 0
B12: =Index!B13 -> Input|Indirect Cost Rates | C12: ='Calc|Labour Rates'!H1 -> NA
B13: =Index!B14 -> Calc|Labour Rates | C13: ='Output|Labour Rates'!I1 -> NA
B14: =Index!B15 -> Model Validation | C14: NA
B16: =B8 -> Output|Labour Rates
B17: =Index!$B$21 -> 1.1 Labour Rates for 2026-27
B19: =B9 -> Input | Setup
B20: =Index!B22 -> 2.1 Years setup | C20: =SUM('Input|Labour Rates'!$I$8:$I$18) -> 0
B21: =Index!B23 -> 2.2 Current regulatory period
B22: =Index!B24 -> 2.3 Forecast regulatory period
B23: =Index!B25 -> 2.4 Hours
B24: =Index!B26 -> 
B25: =Index!B27 -> 2.5 Labour type
B26: =Index!B28 -> 2.6 Expense Type
B27: =Index!B29 -> 2.7 Control Mechanism
B29: =B10 -> Input|Labour Rates
B30: =Index!B30 -> 3.1 Labour Rates | C30: NA
B31: =Index!B31 -> 3.2 Notes and sources | C31: NA
B32: =Index!B32 -> 3.3 Assumptions
B33: =Index!B33 -> 3.4 Notes and sources
B35: =B11 -> Input|Escalations
B36: =Index!B34 -> 4.1 Escalation setup | C36: NA
B37: =Index!B35 -> 4.2 Inflation
B39: =B12 -> Input|Indirect Cost Rates
B40: =Index!B37 -> 5.1 On costs | C40: NA
B41: =Index!B38 -> 5.2 Overheads
B42: =Index!B39 -> 5.3 Vehicle Allowance
B44: =B13 -> Calc|Labour Rates
B45: =Index!B40 -> 6.1 Labour Rates ($2024-25) | C45: NA
